[Event "Djerba Festival Open-A 2024"]
[Site "Djerba"]
[Date "2024.02.25"]
[Round "9.1"]
[White "Abbes, Ali"]
[Black "Defromont, Benjamin"]
[Result "0-1"]
[ECO "B01"]
[WhiteElo "2218"]
[BlackElo "2423"]
[Annotator "ChessBase"]
[PlyCount "128"]
[EventDate "2024.02.18"]
[EventType "swiss"]
[EventCountry "TUN"]
[SourceTitle "playchess.com"]
[Source "ChessBase"]
[SourceQuality "1"]
[TimeControl "5400+30"]

1. e4 {[%emt 0:04:07]} e5 {[%emt 0:01:08]} 2. d4 {[%emt 0:00:28]} exd4 {[%emt 0:00:05]} 3. c3 {[%emt 0:00:10]} d5 {[%emt 0:02:08]} 4. exd5 {[%emt 0:01:32]} Qxd5 {[%emt 0:00:11]} 5. Nf3 {[%emt 0:00:04]} Nc6 {[%emt 0:06:11]} 6. Be2 {[%emt 0:05:31]} Bg4 {[%emt 0:00:10]} 7. O-O {[%emt 0:01:05]} O-O-O {[%emt 0:00:12]} 8. Nxd4 {[%emt 0:00:25]} Bxe2 {[%emt 0:01:52]} 9. Qxe2 {[%emt 0:00:15]} Nf6 {[%emt 0:12:00]} 10. Be3 {[%emt 0:02:00]} Bc5 {[%emt 0:02:45]} 11. Nxc6 {[%emt 0:20:11]} Qxc6 {[%emt 0:00:30]} 12. Bxc5 {[%emt 0:01:49]} Qxc5 {[%emt 0:00:09]} 13. Na3 {[%emt 0:00:09]} Rhe8 {[%emt 0:01:10]} 14. Qc2 {[%emt 0:04:57]} Ne4 {[%emt 0:03:56]} 15. Rad1 {[%emt 0:02:21]} f5 {[%emt 0:00:26]} 16. Rxd8+ {[%emt 0:06:26]} Rxd8 {[%emt 0:02:56]} 17. Qb3 {[%emt 0:01:37]} Rd5 {[%emt 0:09:16]} 18. Nc4 {[%emt 0:00:20]} f4 {[%emt 0:11:02]} 19. Qa4 {[%emt 0:03:33]} Nf6 {[%emt 0:03:19]} 20. Re1 {[%emt 0:00:19]} c6 {[%emt 0:04:17]} 21. Na3 {[%emt 0:04:35]} f3 {[%emt 0:02:32]} 22. Qf4 {[%emt 0:03:07]} Rf5 {[%emt 0:03:48]} 23. Qe3 {[%emt 0:02:06]} Qxe3 {[%emt 0:00:57]} 24. Rxe3 {[%emt 0:00:10]} fxg2 {[%emt 0:00:29]} 25. Kxg2 {[%emt 0:00:08]} Nd5 {[%emt 0:04:29]} 26. Re8+ {[%emt 0:04:18]} Kd7 {[%emt 0:00:17]} 27. Rb8 {[%emt 0:00:18]} Kc7 {[%emt 0:00:28]} 28. Rg8 {[%emt 0:00:51]} Rf7 {[%emt 0:01:26]} 29. Nc4 {[%emt 0:03:00]} Nf4+ {[%emt 0:01:59]} 30. Kg3 {[%emt 0:00:20]} Nd3 {[%emt 0:00:55]} 31. f3 {[%emt 0:00:18]} b5 {[%emt 0:00:30]} 32. Ra8 {[%emt 0:08:21]} Kb7 {[%emt 0:00:56]} 33. Nd6+ {[%emt 0:00:14]} Kxa8 {[%emt 0:00:04]} 34. Nxf7 {[%emt 0:00:08]} Nxb2 {[%emt 0:00:16]} 35. Ng5 {[%emt 0:00:06]} Nd1 {[%emt 0:01:17]} 36. Ne4 {[%emt 0:00:24]} Kb8 {[%emt 0:01:25]} 37. Kf4 {[%emt 0:00:50]} Kc7 {[%emt 0:00:20]} 38. Ke5 {[%emt 0:00:34]} Kd7 {[%emt 0:00:52]} 39. f4 {[%emt 0:00:18]} Ne3 {[%emt 0:01:49]} 40. h4 {[%emt 0:03:09]} Nd5 {[%emt 0:03:36]} 41. f5 {[%emt 0:02:05]} Ke7 {[%emt 0:00:41]} 42. Kd4 {[%emt 0:02:27]} Nf6 {[%emt 0:03:15]} 43. Ng5 {[%emt 0:00:48]} h6 {[%emt 0:01:48]} 44. Ne6 {[%emt 0:01:52]} g6 {[%emt 0:01:00]} 45. Ke5 {[%emt 0:00:30]} Nd7+ {[%emt 0:00:51]} 46. Kf4 {[%emt 0:01:12]} Kf6 {[%emt 0:00:52]} 47. Nd4 {[%emt 0:00:13]} g5+ {[%emt 0:02:03]} 48. hxg5+ {[%emt 0:00:08]} hxg5+ {[%emt 0:00:04]} 49. Kf3 {[%emt 0:02:35]} a6 {[%emt 0:02:23]} 50. Ke4 {[%emt 0:04:03]} Nc5+ {[%emt 0:01:26]} 51. Kf3 {[%emt 0:05:02]} Na4 {[%emt 0:00:27]} 52. Kg4 {[%emt 0:00:44]} c5 {[%emt 0:02:35]} 53. Ne6 {[%emt 0:00:37]} c4 {[%emt 0:00:24]} 54. Nxg5 {[%emt 0:01:53]} Nxc3 {[%emt 0:00:06]} 55. a3 {[%emt 0:00:24]} a5 {[%emt 0:00:40]} 56. Kf4 {[%emt 0:01:07]} Nd5+ {[%emt 0:01:21]} 57. Kg4 {[%emt 0:00:14]} c3 {[%emt 0:00:28]} 58. Ne4+ {[%emt 0:01:02]} Ke5 {[%emt 0:00:09]} 59. Nc5 {[%emt 0:00:14]} a4 {[%emt 0:03:05]} 60. Nd3+ {[%emt 0:00:49]} Kd4 {[%emt 0:00:09]} 61. Ne1 {[%emt 0:01:07]} Ke3 {[%emt 0:00:27]} 62. Nc2+ {[%emt 0:00:49]} Kd2 {[%emt 0:01:17]} 63. Nb4 {[%emt 0:00:25]} Nxb4 {[%emt 0:00:17]} 64. f6 {[%emt 0:00:06]} Nc6 {[%emt 0:00:23]} 0-1

[Event "Djerba Festival Open-A 2024"]
[Site "Djerba"]
[Date "2024.02.25"]
[Round "9.2"]
[White "Domenech, Vianney"]
[Black "Rudzinska, Michalina"]
[Result "0-1"]
[ECO "A46"]
[WhiteElo "2254"]
[BlackElo "2241"]
[Annotator "ChessBase"]
[PlyCount "106"]
[EventDate "2024.02.18"]
[EventType "swiss"]
[EventCountry "TUN"]
[SourceTitle "playchess.com"]
[Source "ChessBase"]
[SourceQuality "1"]
[TimeControl "5400+30"]

1. d4 {[%emt 0:00:02]} Nf6 {[%emt 0:02:54]} 2. Bg5 {[%emt 0:00:22]} e6 {[%emt 0:00:35]} 3. e4 {[%emt 0:00:36]} h6 {[%emt 0:00:13]} 4. Bxf6 {[%emt 0:00:04]} Qxf6 {[%emt 0:00:09]} 5. c3 {[%emt 0:00:03]} c5 {[%emt 0:01:25]} 6. Nf3 {[%emt 0:00:55]} cxd4 {[%emt 0:03:44]} 7. cxd4 {[%emt 0:05:27]} Bb4+ {[%emt 0:01:54]} 8. Nbd2 {[%emt 0:00:42]} Nc6 {[%emt 0:03:01]} 9. a3 {[%emt 0:02:40]} Bxd2+ {[%emt 0:01:51]} 10. Qxd2 {[%emt 0:00:14]} d6 {[%emt 0:01:24]} 11. Bb5 {[%emt 0:06:15]} Bd7 {[%emt 0:06:19]} 12. O-O {[%emt 0:00:51]} O-O {[%emt 0:05:33]} 13. Rac1 {[%emt 0:07:13]} Rac8 {[%emt 0:03:04]} 14. Rc3 {[%emt 0:09:23]} a6 {[%emt 0:04:19]} 15. Ba4 {[%emt 0:10:27]} b5 {[%emt 0:02:08]} 16. Bb3 {[%emt 0:00:17]} Qd8 {[%emt 0:09:38]} 17. d5 {[%emt 0:06:35]} exd5 {[%emt 0:05:12]} 18. Bxd5 {[%emt 0:00:50]} Ne7 {[%emt 0:02:26]} 19. Rd3 {[%emt 0:03:39]} Qc7 {[%emt 0:06:29]} 20. Bb3 {[%emt 0:05:28]} Bc6 {[%emt 0:00:44]} 21. Rxd6 {[%emt 0:02:14]} Bxe4 {[%emt 0:02:51]} 22. Ne5 {[%emt 0:00:19]} Bf5 {[%emt 0:09:32]} 23. Rd1 {[%emt 0:02:13]} Rce8 {[%emt 0:04:34]} 24. Nd7 {[%emt 0:09:30]} Bxd7 {[%emt 0:00:26]} 25. Rxd7 {[%emt 0:00:05]} Qb8 {[%emt 0:05:28]} 26. Re1 {[%emt 0:02:45]} Nc6 {[%emt 0:00:49]} 27. Rxe8 {[%emt 0:00:18]} Qxe8 {[%emt 0:00:10]} 28. h3 {[%emt 0:03:28]} Ne5 {[%emt 0:01:50]} 29. Ra7 {[%emt 0:00:36]} Qc6 {[%emt 0:01:20]} 30. Qd4 {[%emt 0:03:12]} Qc1+ {[%emt 0:02:16]} 31. Qd1 {[%emt 0:03:04]} Qxb2 {[%emt 0:00:39]} 32. f4 {[%emt 0:07:47]} Nc4 {[%emt 0:05:18]} 33. Bxc4 {[%emt 0:00:08]} bxc4 {[%emt 0:00:03]} 34. Rxa6 {[%emt 0:00:50]} c3 {[%emt 0:04:20]} 35. Rc6 {[%emt 0:00:54]} Qxa3 {[%emt 0:01:02]} 36. Qc2 {[%emt 0:02:32]} Qb4 {[%emt 0:02:45]} 37. f5 {[%emt 0:03:39]} Qd4+ {[%emt 0:00:28]} 38. Kh1 {[%emt 0:00:26]} Ra8 {[%emt 0:01:03]} 39. Rxc3 {[%emt 0:01:45]} Ra1+ {[%emt 0:00:13]} 40. Kh2 {[%emt 0:00:06]} Qe5+ {[%emt 0:00:22]} 41. Rg3 {[%emt 0:00:51]} Ra3 {[%emt 0:00:39]} 42. Qf2 {[%emt 0:00:28]} f6 {[%emt 0:01:25]} 43. h4 {[%emt 0:00:29]} Ra4 {[%emt 0:00:41]} 44. Kh3 {[%emt 0:01:16]} Rf4 {[%emt 0:00:17]} 45. Qa2+ {[%emt 0:00:24]} Kh7 {[%emt 0:00:04]} 46. Qc2 {[%emt 0:01:17]} Qd4 {[%emt 0:00:29]} 47. Rxg7+ {[%emt 0:00:47]} Kxg7 {[%emt 0:00:05]} 48. Qc7+ {[%emt 0:00:03]} Kf8 {[%emt 0:00:16]} 49. Qc8+ {[%emt 0:00:08]} Ke7 {[%emt 0:00:13]} 50. Qc7+ {[%emt 0:00:24]} Ke8 {[%emt 0:00:07]} 51. Qc8+ {[%emt 0:00:26]} Qd8 {[%emt 0:00:35]} 52. Qc6+ {[%emt 0:00:45]} Qd7 {[%emt 0:00:28]} 53. Qa8+ {[%emt 0:00:10]} Kf7 {[%emt 0:00:34]} 0-1

[Event "Djerba Festival Open-A 2024"]
[Site "Djerba"]
[Date "2024.02.25"]
[Round "9.3"]
[White "Amdouni, Zoubaier"]
[Black "Djabri, Massinas"]
[Result "1/2-1/2"]
[ECO "B87"]
[WhiteElo "2209"]
[BlackElo "2238"]
[Annotator "ChessBase"]
[PlyCount "78"]
[EventDate "2024.02.18"]
[EventType "swiss"]
[EventCountry "TUN"]
[SourceTitle "playchess.com"]
[Source "ChessBase"]
[SourceQuality "1"]
[TimeControl "5400+30"]

1. e4 {[%emt 0:03:28]} c5 {[%emt 0:03:52]} 2. Nf3 {[%emt 0:00:18]} d6 {[%emt 0:00:07]} 3. d4 {[%emt 0:00:05]} cxd4 {[%emt 0:00:05]} 4. Nxd4 {[%emt 0:00:02]} Nf6 {[%emt 0:00:09]} 5. Nc3 {[%emt 0:00:05]} a6 {[%emt 0:00:05]} 6. Bc4 {[%emt 0:00:04]} e6 {[%emt 0:00:05]} 7. Bb3 {[%emt 0:00:01]} b5 {[%emt 0:00:06]} 8. Qf3 {[%emt 0:00:33]} Qc7 {[%emt 0:00:40]} 9. Bg5 {[%emt 0:01:03]} Be7 {[%emt 0:01:27]} 10. O-O-O {[%emt 0:00:11]} O-O {[%emt 0:00:13]} 11. e5 {[%emt 0:04:58]} Bb7 {[%emt 0:00:13]} 12. exf6 {[%emt 0:04:11]} Bxf3 {[%emt 0:06:32]} 13. fxe7 {[%emt 0:00:09]} Re8 {[%emt 0:00:14]} 14. gxf3 {[%emt 0:01:44]} h6 {[%emt 0:01:27]} 15. Nxe6 {[%emt 0:36:15]} fxe6 {[%emt 0:00:07]} 16. Bxe6+ {[%emt 0:00:04]} Kh8 {[%emt 0:00:31]} 17. Nd5 {[%emt 0:00:05]} Qa5 {[%emt 0:02:00]} 18. Bd2 {[%emt 0:19:22]} Qxa2 {[%emt 0:01:57]} 19. Bc3 {[%emt 0:00:05]} b4 {[%emt 0:04:42]} 20. Bxg7+ {[%emt 0:02:05]} Kxg7 {[%emt 0:00:09]} 21. Rhg1+ {[%emt 0:00:04]} Kh8 {[%emt 0:00:11]} 22. Nc7 {[%emt 0:04:43]} Qa1+ {[%emt 0:00:39]} 23. Kd2 {[%emt 0:00:01]} Qxb2 {[%emt 0:00:09]} 24. Nxe8 {[%emt 0:01:56]} Qc3+ {[%emt 0:01:03]} 25. Kc1 {[%emt 0:08:36]} Qa1+ {[%emt 0:00:13]} 26. Kd2 {[%emt 0:00:01]} Qc3+ {[%emt 0:00:08]} 27. Kc1 {[%emt 0:01:19]} Qa1+ {[%emt 0:00:06]} 28. Kd2 {[%emt 0:00:01]} Qc3+ {[%emt 0:00:05]} 29. Ke2 {[%emt 0:11:06]} Qe5+ {[%emt 0:00:09]} 30. Kf1 {[%emt 0:00:01]} Qxe6 {[%emt 0:00:29]} 31. Rxd6 {[%emt 0:00:01]} Qh3+ {[%emt 0:00:24]} 32. Rg2 {[%emt 0:00:12]} Nc6 {[%emt 0:02:09]} 33. Nc7 {[%emt 0:00:49]} Nxe7 {[%emt 0:00:53]} 34. Nxa8 {[%emt 0:00:24]} Nf5 {[%emt 0:00:47]} 35. Rd8+ {[%emt 0:03:09]} Kh7 {[%emt 0:00:31]} 36. Rd7+ {[%emt 0:00:05]} Kh8 {[%emt 0:00:01]} 37. Rd8+ {[%emt 0:01:05]} Kh7 {[%emt 0:00:01]} 38. Rd7+ {[%emt 0:00:23]} Kh8 {[%emt 0:00:05]} 39. Rd8+ {[%emt 0:00:21]} Kh7 {[%emt 0:00:04]} 1/2-1/2

[Event "Djerba Festival Open-A 2024"]
[Site "Djerba"]
[Date "2024.02.25"]
[Round "9.4"]
[White "Brahami, Lamine"]
[Black "Travadon, Loic"]
[Result "0-1"]
[ECO "D24"]
[WhiteElo "2178"]
[BlackElo "2460"]
[Annotator "ChessBase"]
[PlyCount "110"]
[EventDate "2024.02.18"]
[EventType "swiss"]
[EventCountry "TUN"]
[SourceTitle "playchess.com"]
[Source "ChessBase"]
[SourceQuality "1"]
[TimeControl "5400+30"]

1. d4 {[%emt 0:00:16]} Nf6 {[%emt 0:00:13]} 2. c4 {[%emt 0:00:55]} e6 {[%emt 0:01:10]} 3. Nf3 {[%emt 0:00:30]} d5 {[%emt 0:03:44]} 4. Nc3 {[%emt 0:01:38]} dxc4 {[%emt 0:01:37]} 5. e4 {[%emt 0:03:22]} b5 {[%emt 0:00:15]} 6. e5 {[%emt 0:01:29]} Nd5 {[%emt 0:00:07]} 7. Nxb5 {[%emt 0:01:21]} Nb6 {[%emt 0:00:17]} 8. a4 {[%emt 0:05:08]} Qd7 {[%emt 0:08:00]} 9. Na3 {[%emt 0:07:16]} Bxa3 {[%emt 0:01:43]} 10. Rxa3 {[%emt 0:01:06]} a5 {[%emt 0:00:15]} 11. h4 {[%emt 0:09:23]} Nc6 {[%emt 0:06:44]} 12. h5 {[%emt 0:03:59]} f5 {[%emt 0:00:54]} 13. h6 {[%emt 0:14:01]} g6 {[%emt 0:00:08]} 14. Bg5 {[%emt 0:00:15]} Ba6 {[%emt 0:00:39]} 15. Be2 {[%emt 0:01:55]} O-O {[%emt 0:00:49]} 16. Rh4 {[%emt 0:10:37]} Nb4 {[%emt 0:05:00]} 17. Nd2 {[%emt 0:03:08]} Nd3+ {[%emt 0:01:13]} 18. Bxd3 {[%emt 0:03:48]} cxd3 {[%emt 0:00:07]} 19. Kf1 {[%emt 0:05:27]} Nd5 {[%emt 0:03:39]} 20. Nb3 {[%emt 0:01:34]} Rfb8 {[%emt 0:01:28]} 21. Kg1 {[%emt 0:05:13]} Qc6 {[%emt 0:02:52]} 22. Nc5 {[%emt 0:01:27]} Rxb2 {[%emt 0:00:33]} 23. Nxd3 {[%emt 0:02:30]} Bxd3 {[%emt 0:00:37]} 24. Qxd3 {[%emt 0:00:11]} Rb4 {[%emt 0:00:16]} 25. Qd1 {[%emt 0:02:52]} Rab8 {[%emt 0:00:40]} 26. Kh2 {[%emt 0:00:07]} Rb2 {[%emt 0:01:14]} 27. Qf3 {[%emt 0:00:33]} Qc2 {[%emt 0:00:31]} 28. Be3 {[%emt 0:00:59]} Qe2 {[%emt 0:03:07]} 29. Bc1 {[%emt 0:03:46]} Qxf2 {[%emt 0:01:51]} 30. Rh3 {[%emt 0:00:07]} Qxf3 {[%emt 0:00:16]} 31. Rhxf3 {[%emt 0:00:08]} Rc2 {[%emt 0:00:08]} 32. Ra1 {[%emt 0:00:29]} Rb4 {[%emt 0:00:32]} 33. Ba3 {[%emt 0:00:30]} Rxd4 {[%emt 0:00:41]} 34. Rb1 {[%emt 0:00:16]} Nb4 {[%emt 0:03:20]} 35. Bxb4 {[%emt 0:02:45]} axb4 {[%emt 0:00:09]} 36. a5 {[%emt 0:00:52]} c5 {[%emt 0:00:42]} 37. Ra1 {[%emt 0:01:18]} Rdd2 {[%emt 0:00:19]} 38. Rg3 {[%emt 0:00:14]} Kf7 {[%emt 0:02:40]} 39. a6 {[%emt 0:01:49]} Ra2 {[%emt 0:00:06]} 40. Rxa2 {[%emt 0:00:38]} Rxa2 {[%emt 0:00:02]} 41. Rd3 {[%emt 0:00:07]} g5 {[%emt 0:01:27]} 42. Rd7+ {[%emt 0:00:27]} Kg6 {[%emt 0:00:05]} 43. Rd6 {[%emt 0:00:05]} f4 {[%emt 0:00:27]} 44. Rxe6+ {[%emt 0:00:10]} Kf5 {[%emt 0:00:07]} 45. Rc6 {[%emt 0:00:03]} Kxe5 {[%emt 0:00:54]} 46. Rxc5+ {[%emt 0:00:07]} Kd4 {[%emt 0:00:07]} 47. Rc7 {[%emt 0:01:57]} Rxa6 {[%emt 0:01:10]} 48. Rxh7 {[%emt 0:00:06]} Ke3 {[%emt 0:00:28]} 49. Kg1 {[%emt 0:01:30]} Ra1+ {[%emt 0:00:06]} 50. Kh2 {[%emt 0:00:07]} Kf2 {[%emt 0:00:10]} 51. Rh8 {[%emt 0:01:14]} g4 {[%emt 0:00:45]} 52. Rc8 {[%emt 0:03:52]} Ra6 {[%emt 0:00:16]} 53. Rc2+ {[%emt 0:00:57]} Ke3 {[%emt 0:00:06]} 54. Rb2 {[%emt 0:01:04]} Rxh6+ {[%emt 0:00:14]} 55. Kg1 {[%emt 0:00:08]} Rb6 {[%emt 0:00:05]} 0-1

[Event "Djerba Festival Open-A 2024"]
[Site "Djerba"]
[Date "2024.02.25"]
[Round "9.5"]
[White "Eden, James"]
[Black "Alhassadi, Yousef A."]
[Result "1-0"]
[ECO "B22"]
[WhiteElo "2319"]
[BlackElo "2011"]
[Annotator "ChessBase"]
[PlyCount "91"]
[EventDate "2024.02.18"]
[EventType "swiss"]
[EventCountry "TUN"]
[SourceTitle "playchess.com"]
[Source "ChessBase"]
[SourceQuality "1"]
[TimeControl "5400+30"]

1. e4 {[%emt 0:00:04]} c5 {[%emt 0:00:06]} 2. Nf3 {[%emt 0:00:20]} e6 {[%emt 0:00:07]} 3. c3 {[%emt 0:01:44]} Nf6 {[%emt 0:00:16]} 4. e5 {[%emt 0:00:09]} Nd5 {[%emt 0:00:04]} 5. d4 {[%emt 0:00:23]} cxd4 {[%emt 0:00:07]} 6. cxd4 {[%emt 0:00:06]} d6 {[%emt 0:00:21]} 7. Bc4 {[%emt 0:00:17]} Nc6 {[%emt 0:00:16]} 8. O-O {[%emt 0:00:16]} Nb6 {[%emt 0:00:25]} 9. Bb3 {[%emt 0:01:48]} dxe5 {[%emt 0:00:43]} 10. dxe5 {[%emt 0:00:44]} Qxd1 {[%emt 0:00:10]} 11. Rxd1 {[%emt 0:00:08]} Be7 {[%emt 0:00:36]} 12. Nc3 {[%emt 0:00:56]} Bd7 {[%emt 0:01:50]} 13. Nb5 {[%emt 0:03:37]} O-O {[%emt 0:01:22]} 14. Nd6 {[%emt 0:01:13]} Na5 {[%emt 0:02:52]} 15. Bc2 {[%emt 0:06:05]} Bc6 {[%emt 0:05:46]} 16. b3 {[%emt 0:03:51]} Bd5 {[%emt 0:07:21]} 17. Bf4 {[%emt 0:07:39]} Nc6 {[%emt 0:07:44]} 18. Nd4 {[%emt 0:13:19]} Rad8 {[%emt 0:18:42]} 19. Nxc6 {[%emt 0:07:06]} Bxc6 {[%emt 0:00:21]} 20. Be3 {[%emt 0:01:46]} Rd7 {[%emt 0:10:43]} 21. Be4 {[%emt 0:02:26]} Bxe4 {[%emt 0:05:37]} 22. Nxe4 {[%emt 0:02:25]} Nd5 {[%emt 0:08:31]} 23. Nc3 {[%emt 0:03:32]} b6 {[%emt 0:06:43]} 24. Nxd5 {[%emt 0:01:42]} exd5 {[%emt 0:00:02]} 25. Rac1 {[%emt 0:00:22]} Rfd8 {[%emt 0:01:29]} 26. Bd4 {[%emt 0:00:13]} Ba3 {[%emt 0:03:38]} 27. Rc6 {[%emt 0:00:40]} Bb4 {[%emt 0:00:31]} 28. f4 {[%emt 0:00:46]} Re7 {[%emt 0:04:21]} 29. Kf2 {[%emt 0:01:26]} h6 {[%emt 0:01:40]} 30. Kf3 {[%emt 0:00:30]} Ba3 {[%emt 0:00:24]} 31. Rd2 {[%emt 0:01:05]} Kh7 {[%emt 0:01:02]} 32. g4 {[%emt 0:00:23]} Bb4 {[%emt 0:01:07]} 33. Rdc2 {[%emt 0:00:16]} Ba3 {[%emt 0:01:43]} 34. h4 {[%emt 0:00:37]} Bb4 {[%emt 0:01:09]} 35. h5 {[%emt 0:00:19]} Ba3 {[%emt 0:01:06]} 36. Rc8 {[%emt 0:02:13]} Rdd7 {[%emt 0:01:07]} 37. R2c6 {[%emt 0:00:52]} Re6 {[%emt 0:01:17]} 38. R6c7 {[%emt 0:00:42]} Ree7 {[%emt 0:00:08]} 39. Rxd7 {[%emt 0:00:22]} Rxd7 {[%emt 0:00:02]} 40. f5 {[%emt 0:00:17]} Be7 {[%emt 0:00:59]} 41. a4 {[%emt 0:00:29]} Rb7 {[%emt 0:00:50]} 42. Ke2 {[%emt 0:01:18]} Bb4 {[%emt 0:00:33]} 43. Rd8 {[%emt 0:01:28]} b5 {[%emt 0:00:37]} 44. Rxd5 {[%emt 0:00:16]} bxa4 {[%emt 0:00:07]} 45. bxa4 {[%emt 0:00:07]} Rc7 {[%emt 0:00:13]} 46. Kd3 {[%emt 0:00:35]} 1-0

[Event "Djerba Festival Open-A 2024"]
[Site "Djerba"]
[Date "2024.02.25"]
[Round "9.6"]
[White "Taieb, Sahbi"]
[Black "Merenciano, Alexandre"]
[Result "0-1"]
[ECO "A46"]
[WhiteElo "2085"]
[BlackElo "2194"]
[Annotator "ChessBase"]
[PlyCount "119"]
[EventDate "2024.02.18"]
[EventType "swiss"]
[EventCountry "TUN"]
[SourceTitle "playchess.com"]
[Source "ChessBase"]
[SourceQuality "1"]
[TimeControl "5400+30"]

1. d4 {[%emt 0:04:27]} Nf6 {[%emt 0:08:22]} 2. Nf3 {[%emt 0:03:14]} e6 {[%emt 0:01:45]} 3. g3 {[%emt 0:00:10]} c5 {[%emt 0:01:22]} 4. Bg2 {[%emt 0:00:29]} cxd4 {[%emt 0:01:06]} 5. Nxd4 {[%emt 0:00:28]} Nc6 {[%emt 0:10:28]} 6. O-O {[%emt 0:02:11]} Qb6 {[%emt 0:03:50]} 7. Nb3 {[%emt 0:00:15]} d5 {[%emt 0:06:17]} 8. Nc3 {[%emt 0:06:41]} Be7 {[%emt 0:05:32]} 9. e4 {[%emt 0:15:24]} d4 {[%emt 0:10:51]} 10. Ne2 {[%emt 0:12:12]} e5 {[%emt 0:00:50]} 11. Kh1 {[%emt 0:00:22]} h5 {[%emt 0:05:10]} 12. Bg5 {[%emt 0:02:17]} Ng4 {[%emt 0:11:39]} 13. Bxe7 {[%emt 0:01:27]} Nxe7 {[%emt 0:00:08]} 14. h3 {[%emt 0:15:03]} d3 {[%emt 0:01:36]} 15. Qxd3 {[%emt 0:03:54]} Nxf2+ {[%emt 0:01:32]} 16. Rxf2 {[%emt 0:00:50]} Qxf2 {[%emt 0:00:04]} 17. Rf1 {[%emt 0:06:10]} Qb6 {[%emt 0:00:24]} 18. Nc3 {[%emt 0:02:25]} O-O {[%emt 0:04:51]} 19. Nd5 {[%emt 0:00:46]} Nxd5 {[%emt 0:00:08]} 20. exd5 {[%emt 0:00:07]} Bd7 {[%emt 0:02:51]} 21. c4 {[%emt 0:00:38]} Rac8 {[%emt 0:00:07]} 22. c5 {[%emt 0:04:27]} Qb4 {[%emt 0:02:44]} 23. Rc1 {[%emt 0:01:11]} Ba4 {[%emt 0:05:16]} 24. Qe3 {[%emt 0:03:34]} Rfd8 {[%emt 0:02:27]} 25. Kh2 {[%emt 0:02:26]} a5 {[%emt 0:00:53]} 26. Qxe5 {[%emt 0:08:34]} Bxb3 {[%emt 0:03:33]} 27. axb3 {[%emt 0:00:01]} Rxc5 {[%emt 0:00:38]} 28. Rf1 {[%emt 0:00:37]} Rc2 {[%emt 0:02:54]} 29. Qf5 {[%emt 0:03:12]} Rxg2+ {[%emt 0:00:58]} 30. Kxg2 {[%emt 0:00:07]} Qd2+ {[%emt 0:00:08]} 31. Rf2 {[%emt 0:01:24]} Qxd5+ {[%emt 0:00:09]} 32. Qxd5 {[%emt 0:00:36]} Rxd5 {[%emt 0:00:01]} 33. Rc2 {[%emt 0:00:38]} Rd3 {[%emt 0:01:57]} 34. Rc8+ {[%emt 0:00:04]} Kh7 {[%emt 0:00:07]} 35. Rc5 {[%emt 0:00:02]} h4 {[%emt 0:02:42]} 36. gxh4 {[%emt 0:00:51]} Rxb3 {[%emt 0:00:19]} 37. Rxa5 {[%emt 0:00:11]} Rxb2+ {[%emt 0:00:04]} 38. Kg3 {[%emt 0:00:06]} b5 {[%emt 0:01:10]} 39. Ra7 {[%emt 0:00:06]} f6 {[%emt 0:00:16]} 40. Rb7 {[%emt 0:00:45]} b4 {[%emt 0:00:04]} 41. Kg4 {[%emt 0:02:02]} b3 {[%emt 0:00:44]} 42. Kf5 {[%emt 0:00:14]} Rf2+ {[%emt 0:01:24]} 43. Ke6 {[%emt 0:00:25]} b2 {[%emt 0:01:16]} 44. Kf7 {[%emt 0:00:04]} Rh2 {[%emt 0:00:17]} 45. Rb3 {[%emt 0:00:24]} f5 {[%emt 0:00:35]} 46. Kf8 {[%emt 0:01:25]} Kg6 {[%emt 0:01:13]} 47. Rb7 {[%emt 0:00:15]} Kh5 {[%emt 0:00:30]} 48. Kxg7 {[%emt 0:00:11]} Kxh4 {[%emt 0:00:35]} 49. Kf6 {[%emt 0:00:06]} Rf2 {[%emt 0:01:10]} 50. Rb3 {[%emt 0:00:28]} f4 {[%emt 0:00:18]} 51. Kf5 {[%emt 0:00:09]} f3 {[%emt 0:00:33]} 52. Kf4 {[%emt 0:00:08]} Kxh3 {[%emt 0:00:11]} 53. Rb8 {[%emt 0:02:03]} Kg2 {[%emt 0:00:24]} 54. Rg8+ {[%emt 0:00:25]} Kf1 {[%emt 0:00:09]} 55. Rb8 {[%emt 0:00:35]} Ke1 {[%emt 0:01:19]} 56. Ke3 {[%emt 0:00:33]} Rh2 {[%emt 0:00:47]} 57. Rb7 {[%emt 0:00:37]} Kd1 {[%emt 0:00:21]} 58. Kd3 {[%emt 0:00:33]} Rf2 {[%emt 0:02:31]} 59. Ke3 Rh2 {[%emt 0:00:30]} 60. Kf4 {[%emt 0:01:31]} 0-1

[Event "Djerba Festival Open-A 2024"]
[Site "Djerba"]
[Date "2024.02.25"]
[Round "9.7"]
[White "Lorans, Sylvain"]
[Black "Dwilewicz, Katarzyna"]
[Result "1/2-1/2"]
[ECO "D32"]
[WhiteElo "2076"]
[BlackElo "2129"]
[Annotator "NA RC"]
[PlyCount "52"]
[EventDate "2024.02.18"]
[EventType "swiss"]
[EventCountry "TUN"]
[SourceTitle "playchess.com"]
[Source "ChessBase"]
[SourceQuality "1"]
[TimeControl "5400+30"]

1. d4 {[%emt 0:00:02]} d5 {[%emt 0:02:26]} 2. c4 {[%emt 0:00:08]} c6 {[%emt 0:00:13]} 3. Nc3 {[%emt 0:00:05]} Nf6 {[%emt 0:00:05]} 4. e3 {[%emt 0:00:05]} e6 {[%emt 0:00:32]} 5. Nf3 {[%emt 0:00:09]} a6 {[%emt 0:01:05]} 6. Qc2 {[%emt 0:00:51]} c5 {[%emt 0:08:50]} 7. cxd5 {[%emt 0:01:46]} exd5 {[%emt 0:00:33]} 8. Be2 {[%emt 0:01:07]} Nc6 {[%emt 0:06:19]} 9. dxc5 {[%emt 0:13:20]} Bxc5 {[%emt 0:00:21]} 10. O-O {[%emt 0:00:21]} Qe7 {[%emt 0:04:20]} 11. a3 {[%emt 0:01:43]} O-O {[%emt 0:02:42]} 12. b4 {[%emt 0:02:40]} Ba7 {[%emt 0:03:48]} 13. b5 {[%emt 0:00:22]} axb5 {[%emt 0:01:56]} 14. Nxb5 {[%emt 0:00:55]} Bb8 {[%emt 0:03:35]} 15. a4 {[%emt 0:03:00]} Rd8 {[%emt 0:02:38]} 16. Ba3 {[%emt 0:00:35]} Qe4 {[%emt 0:09:03]} 17. Qxe4 {[%emt 0:19:58]} dxe4 {[%emt 0:00:19]} 18. Nfd4 {[%emt 0:00:03]} Rxa4 {[%emt 0:15:27]} 19. Nxc6 {[%emt 0:03:09]} bxc6 {[%emt 0:00:07]} 20. Nd4 {[%emt 0:19:03]} Bd7 {[%emt 0:05:00]} 21. Be7 {[%emt 0:02:43]} Rxa1 {[%emt 0:00:21]} 22. Rxa1 {[%emt 0:00:03]} Re8 {[%emt 0:00:08]} 23. Bxf6 {[%emt 0:02:32]} gxf6 {[%emt 0:00:02]} 24. Rc1 {[%emt 0:00:10]} Rc8 {[%emt 0:01:38]} 25. g4 {[%emt 0:13:43]} Bd6 {[%emt 0:06:24]} 26. Nf5 {[%emt 0:01:08]} Bxf5 {[%emt 0:05:18]} 1/2-1/2